fUST/lending_fUST_20250506
["ID","MTS","AMOUNT","RATE_DAILY","PERIOD"]
[359990769,1746466263642,-617.39,0.00033698,8]
[359990770,1746466263652,-400.0,0.00033698,8]
[359990771,1746466263662,-400.0,0.00033698,8]
[359990772,1746466263672,-534.63,0.00033698,8]
[359990773,1746466263682,-400.0,0.00033698,8]
[359990774,1746466263692,-400.0,0.00033698,8]
[359990775,1746466263702,-400.0,0.00033698,8]
[359990776,1746466263712,-400.0,0.00033698,8]
[359990777,1746466263722,-832.63,0.00033698,8]
[359990778,1746466263733,-400.0,0.00033698,8]
[359990779,1746466263742,-937.4,0.00033698,8]
[359990780,1746466263753,-400.0,0.00033698,8]
[359990781,1746466263763,-400.0,0.00033698,8]
[359990782,1746466263773,-9074.6,0.00033698,8]
[359990783,1746466263783,-1547.41,0.00033698,8]
[359990784,1746466263792,-1484.01,0.00033698,8]
[359990785,1746466263802,-400.0,0.00033698,8]
[359990786,1746466263815,-400.0,0.00033698,8]
[359990787,1746466263826,-2080.35,0.00033698,8]
[359990788,1746466263836,-2232.97,0.00033698,8]
[359990789,1746466263847,-1691.97,0.00033698,8]
[359990790,1746466263858,-400.0,0.00033698,8]
[359990791,1746466263868,-400.0,0.00033698,8]
[359990792,1746466263878,-400.0,0.00033698,8]
[359990793,1746466263887,-354.86014495,0.00033698,8]
[359990794,1746466263897,-400.0,0.00033698,8]
[359990795,1746466263907,-400.0,0.00033698,8]
[359990796,1746466263918,-3521.81,0.00033698,8]
[359990797,1746466263929,-708.96,0.00033698,8]
[359990798,1746466263939,-551.13,0.00033698,8]
[359990799,1746466263950,-400.0,0.00033698,8]
[359990800,1746466263960,-526.96750503,0.00033698,8]
[359990801,1746466263971,-553.1,0.00033698,8]
[359990802,1746466263982,-400.0,0.00033698,8]
[359990803,1746466263992,-586.27,0.00033698,8]
[359990804,1746466264003,-400.0,0.00033698,8]
[359990805,1746466264013,-400.0,0.00033698,8]
[359990806,1746466264024,-1186.53,0.00033698,8]
[359990807,1746466264035,-535.86,0.00033698,8]
[359990808,1746466264045,-400.0,0.00033698,8]
[359990809,1746466264056,-1986.73,0.00033698,8]
[359990810,1746466264066,-1000.0,0.00033698,8]
[359990811,1746466264077,-462.97,0.00033698,8]
[359990812,1746466264087,-406.42,0.00033698,8]
[359990813,1746466264226,-400.0,0.00033698,8]
[359990814,1746466264237,-400.0,0.00033698,8]
[359990815,1746466264246,-1488.07,0.00033698,8]
[359990816,1746466264257,-607.06,0.00033698,8]
[359990817,1746466264267,-4132.62,0.00033698,8]
[359990818,1746466264280,-1507.7,0.00033698,8]
[359990819,1746466264290,-1135.42,0.00033698,8]
[359990820,1746466264300,-681.33,0.00033698,8]
[359990821,1746466264311,-400.0,0.00033698,8]
[359990822,1746466264320,-1080.08,0.00033698,8]
[359990823,1746466264330,-400.0,0.00033698,8]
[359990824,1746466264339,-735.3,0.00033698,8]
[359990825,1746466264349,-400.0,0.00033698,8]
[359990826,1746466264359,-681.17,0.00033698,8]
[359990827,1746466264369,-400.0,0.00033698,8]
[359990828,1746466264379,-4785.9,0.00033698,8]
[359990829,1746466264388,-400.0,0.00033698,8]
[359990830,1746466264398,-400.0,0.00033698,8]
[359990831,1746466264408,-400.0,0.00033698,8]
[359990832,1746466264418,-578.15,0.00033698,8]
[359990833,1746466264428,-400.0,0.00033698,8]
[359990834,1746466264437,-25922.47,0.00033698,8]
[359990835,1746466264447,-400.0,0.00033698,8]
[359990836,1746466264457,-400.0,0.00033698,8]
[359990837,1746466264467,-400.0,0.00033698,8]
[359990838,1746466264477,-3661.81,0.00033698,8]
[359990839,1746466264487,-400.0,0.00033698,8]
[359990840,1746466264496,-400.0,0.00033698,8]
[359990841,1746466264506,-400.0,0.00033698,8]
[359990842,1746466264516,-2781.29,0.00033698,8]
[359990843,1746466264526,-1064.62,0.00033698,8]
[359990844,1746466264537,-400.0,0.00033698,8]
[359990845,1746466264547,-400.0,0.00033698,8]
[359990846,1746466264557,-400.0,0.00033698,8]
[359990847,1746466264567,-611.37,0.00033698,8]
[359990848,1746466264578,-400.0,0.00033698,8]
[359990849,1746466264587,-400.0,0.00033698,8]
[359990850,1746466264597,-3135.4,0.00033698,8]
[359990851,1746466264607,-1911.03,0.00033698,8]
[359990852,1746466264616,-3885.96,0.00033698,8]
[359990853,1746466264625,-7691.86,0.00033698,8]
[359990854,1746466264635,-400.0,0.00033698,8]
[359990855,1746466264645,-400.0,0.00033698,8]
[359990856,1746466264655,-4527.66,0.00033698,8]
[359990857,1746466264665,-400.0,0.00033698,8]
[359990858,1746466264675,-400.0,0.00033698,8]
[359990859,1746466264685,-7054.49,0.00033698,8]
[359990860,1746466264695,-516.96,0.00033698,8]
[359990861,1746466264706,-604.47,0.00033698,8]
[359990862,1746466264715,-553.59,0.00033698,8]
[359990863,1746466264725,-400.0,0.00033698,8]
[359990864,1746466264734,-1553.26,0.00033698,8]
[359990865,1746466264745,-1471.97,0.00033698,8]
[359990866,1746466264754,-400.0,0.00033698,8]
[359990867,1746466264764,-400.0,0.00033698,8]
[359990868,1746466264774,-400.0,0.00033698,8]
[359990869,1746466264785,-400.0,0.00033698,8]
[359990870,1746466264794,-784.14,0.00033698,8]
[359990871,1746466264804,-2405.99,0.00033698,8]
[359990872,1746466264814,-566.19,0.00033698,8]
[359990873,1746466264824,-1800.71,0.00033698,8]
[359990874,1746466264834,-659.71,0.00033698,8]
[359990875,1746466264844,-400.0,0.00033698,8]
[359990876,1746466264854,-3076.91,0.00033698,8]
[359990877,1746466264864,-755.88,0.00033698,8]
[359990878,1746466264873,-400.0,0.00033698,8]
[359990879,1746466264883,-712.21,0.00033698,8]
[359990880,1746466264893,-400.0,0.00033698,2]
[359990881,1746466264903,-1249.89,0.00033698,8]
[359990882,1746466264912,-411.12,0.00033698,8]
[359990883,1746466264922,-2513.46,0.00033698,8]
[359990884,1746466264931,-400.0,0.00033698,2]
[359990885,1746466264941,-400.0,0.00033698,8]
[359990886,1746466264951,-400.0,0.00033698,8]
[359990887,1746466264960,-1291.97,0.00033698,8]
[359990888,1746466264970,-400.0,0.00033698,8]
[359990889,1746466264979,-400.0,0.00033698,8]
[359990890,1746466264990,-668.0,0.00033699,3]
[359990891,1746466265000,-8588.12,0.000337,30]
[359990892,1746466265010,-3501.41,0.000337,7]
[359990893,1746466265020,-160.0,0.000337,7]
[359990894,1746466265029,-151.0,0.00033721,5]
[359990895,1746466265040,-668.0,0.00033727,3]
[359990896,1746466265049,-691.41424482,0.00033754,3]
[359990897,1746466265060,-12607.13495863,0.00033837,2]
[359990898,1746466265069,-182.23035355,0.00033837,2]
[359990899,1746466265080,-151.0,0.00033941,2]
[359990900,1746466265090,-215.0738,0.00033941,2]
[359990901,1746466265099,-5000.0,0.00033965,2]
[359990902,1746466265109,-400.0,0.00033972,8]
[359990903,1746466265119,-1692.68,0.00033972,8]
[359990904,1746466265129,-244.386599,0.00033972,14]
[359990905,1746466265139,-244.386599,0.00033972,14]
[359990906,1746466265149,-244.386599,0.00033972,14]
[359990907,1746466265159,-244.386599,0.00033972,14]
[359990908,1746466265169,-408.19,0.00033972,8]
[359990909,1746466265180,-392.99143153,0.00033972,8]
[359990910,1746466265190,-400.0,0.00033972,8]
[359990911,1746466265200,-621.86,0.00033972,8]
[359990912,1746466265210,-400.0,0.00033972,8]
[359990913,1746466265220,-400.0,0.00033972,8]
[359990914,1746466265229,-497.81,0.00033972,8]
[359990915,1746466265239,-400.0,0.00033972,8]
[359990916,1746466265249,-480.51,0.00033972,8]
[359990917,1746466265259,-441.76,0.00033972,8]
[359990918,1746466265271,-400.0,0.00033972,8]
[359990919,1746466265282,-663.75,0.00033972,8]
[359990920,1746466265292,-468.83,0.00033972,8]
[359990921,1746466265302,-400.0,0.00033972,8]
[359990922,1746466265312,-400.0,0.00033972,8]
[359990923,1746466265323,-400.0,0.00033972,8]
[359990924,1746466265332,-650.06,0.00033972,8]
[359990925,1746466265342,-400.0,0.00033972,8]
[359990926,1746466265353,-400.0,0.00033972,8]
[359990927,1746466265363,-400.0,0.00033972,8]
[359990928,1746466265372,-400.0,0.00033972,8]
[359990929,1746466265382,-424.49,0.00033972,8]
[359990930,1746466265392,-212.26447749,0.00033972,8]
[359990931,1746466265402,-400.0,0.00033972,8]
[359990932,1746466265411,-400.0,0.00033972,8]
[359990933,1746466265421,-400.0,0.00033972,8]
[359990934,1746466265431,-584.19,0.00033972,8]
[359990935,1746466265440,-171.29452061,0.00033972,8]
[359990936,1746466265450,-544.01,0.00033972,8]
[359990937,1746466265460,-445.11,0.00033972,8]
[359990938,1746466265470,-400.0,0.00033972,8]
[359990939,1746466265479,-400.0,0.00033972,8]
[359990940,1746466265489,-400.0,0.00033972,8]
[359990941,1746466265498,-400.0,0.00033972,8]
[359990942,1746466265508,-596.14,0.00033972,8]
[359990943,1746466265517,-407.26,0.00033972,8]
[359990944,1746466265526,-400.0,0.00033972,8]
[359990945,1746466265536,-400.0,0.00033972,8]
[359990946,1746466265546,-400.0,0.00033972,8]
[359990947,1746466265556,-723.92,0.00033972,8]
[359990948,1746466265565,-400.0,0.00033972,8]
[359990949,1746466265576,-601.89,0.00033972,8]
[359990950,1746466265586,-400.0,0.00033972,8]
[359990951,1746466265596,-400.0,0.00033972,8]
[359990952,1746466265606,-516.84,0.00033972,8]
[359990953,1746466265615,-744.57,0.00033972,8]
[359990954,1746466265624,-856.46,0.00033972,8]
[359990955,1746466265716,-763.86,0.00033972,8]
[359990956,1746466265726,-500.0,0.00033972,8]
[359990957,1746466265736,-400.0,0.00033972,8]
[359990958,1746466265745,-400.0,0.00033972,8]
[359990959,1746466265754,-508.21,0.00033972,8]
[359990960,1746466265764,-400.0,0.00033972,8]
[359990961,1746466265774,-502.77,0.00033972,8]
[359990962,1746466265783,-2573.19,0.00033972,8]
[359990963,1746466265792,-400.0,0.00033972,8]
[359990964,1746466265801,-412.76,0.00033972,8]
[359990965,1746466265811,-400.0,0.00033972,8]
[359990966,1746466265820,-1858.43,0.00033972,8]
[359990967,1746466265830,-663.7,0.00033972,8]
[359990968,1746466265839,-752.3,0.00033972,8]
[359990969,1746466265849,-400.0,0.00033972,8]
[359990970,1746466265858,-3742.18,0.00033972,8]
[359990971,1746466265867,-400.0,0.00033972,8]
[359990972,1746466265877,-742.46,0.00033972,8]
[359990973,1746466265887,-791.14,0.00033972,8]
[359990974,1746466265897,-500.0,0.00033972,8]
[359990975,1746466265906,-400.0,0.00033972,8]
[359990976,1746466265916,-400.0,0.00033972,8]
[359990977,1746466265925,-537.13580864,0.00033972,8]
[359990978,1746466265934,-400.0,0.00033972,8]
[359990979,1746466265943,-400.0,0.00033972,8]
[359990980,1746466265953,-400.0,0.00033972,8]
[359990981,1746466265962,-424.25,0.00033972,8]
[359990982,1746466265972,-208.26527506,0.00033972,8]
[359990983,1746466265982,-400.0,0.00033972,8]
[359990984,1746466265991,-400.0,0.00033972,8]
[359990985,1746466266001,-400.0,0.00033972,8]
[359990986,1746466266011,-400.0,0.00033972,8]
[359990987,1746466266021,-411.09038285,0.00033972,8]
[359990988,1746466266030,-971.48,0.00033972,8]
[359990989,1746466266039,-411.5751012,0.00033972,8]
[359990990,1746466266049,-400.0,0.00033972,8]
[359990991,1746466266058,-410.74,0.00033972,8]
[359990992,1746466266068,-400.0,0.00033972,8]
[359990993,1746466266077,-502.97,0.00033972,8]
[359990994,1746466266087,-1385.97,0.00033972,8]
[359990995,1746466266096,-828.56,0.00033972,8]
[359990996,1746466266105,-1013.68,0.00033972,8]
[359990997,1746466266115,-904.75,0.00033972,8]
[359990998,1746466266124,-400.0,0.00033972,8]
[359990999,1746466266133,-1542.95,0.00033972,8]
[359991000,1746466266146,-544.83,0.00033972,8]
[359991001,1746466266165,-287.08755603,0.00033972,8]
[359991002,1746466266175,-906.63,0.00033972,8]
[359991003,1746466266185,-400.0,0.00033972,8]
[359991004,1746466266194,-899.92,0.00033972,8]
[359991005,1746466266204,-400.0,0.00033972,8]
[359991006,1746466266213,-400.0,0.00033972,8]
[359991007,1746466266222,-400.0,0.00033972,8]
[359991008,1746466266232,-400.0,0.00033972,8]
[359991009,1746466266241,-1685.97,0.00033972,8]
[359991010,1746466266250,-400.0,0.00033972,8]
[359991011,1746466266259,-400.0,0.00033972,8]
[359991012,1746466266271,-400.0,0.00033972,8]
[359991013,1746466266281,-400.0,0.00033972,8]
[359991014,1746466266290,-411.02,0.00033972,8]
[359991015,1746466266300,-400.0,0.00033972,8]
[359991016,1746466266310,-2098.43,0.00033972,8]
[359991017,1746466266319,-544.02,0.00033972,8]
[359991018,1746466266328,-942.66,0.00033972,8]
[359991019,1746466266340,-400.0,0.00033972,8]
[359991020,1746466266349,-400.0,0.00033972,8]
[359991021,1746466266359,-400.0,0.00033972,8]
[359991022,1746466266368,-1085.21,0.00033972,8]
[359991023,1746466266378,-400.0,0.00033972,8]
[359991024,1746466266387,-400.0,0.00033972,8]
[359991025,1746466266396,-400.0,0.00033972,8]
[359991026,1746466266406,-400.0,0.00033972,8]
[359991027,1746466266415,-400.0,0.00033972,8]
[359991028,1746466266424,-400.0,0.00033972,8]
[359991029,1746466266433,-413.54,0.00033972,8]
[359991030,1746466266442,-400.0,0.00033972,8]
[359991031,1746466266451,-400.0,0.00033972,8]
[359991032,1746466266461,-441.99,0.00033972,8]
[359991033,1746466266470,-400.0,0.00033972,8]
[359991034,1746466266480,-400.0,0.00033972,8]
[359991035,1746466266489,-3512.58,0.00033972,2]
[359991036,1746466266499,-400.0,0.00033972,8]
[359991037,1746466266508,-545.82,0.00033972,8]
[359991038,1746466266521,-400.0,0.00033972,8]
[359991039,1746466266531,-192.57109786,0.00033972,8]
[359991040,1746466266540,-400.0,0.00033972,8]
[359991041,1746466266550,-400.0,0.00033972,8]
[359991042,1746466266559,-748.45,0.00033972,8]
[359991043,1746466266569,-1080.9,0.00033972,8]
[359991044,1746466266579,-617.8,0.00033972,8]
[359991045,1746466266589,-400.0,0.00033972,8]
[359991046,1746466266598,-521.08,0.00033972,8]
[359991047,1746466266608,-400.0,0.00033972,8]
[359991048,1746466266618,-400.0,0.00033972,8]
[359991049,1746466266627,-400.0,0.00033972,8]
[359991050,1746466266637,-580.82,0.00033972,8]
[359991051,1746466266647,-1700.23,0.00033972,8]
[359991052,1746466266657,-400.0,0.00033972,8]
[359991053,1746466266666,-400.0,0.00033972,8]
[359991054,1746466266676,-421.77,0.00033972,8]
[359991055,1746466266686,-400.0,0.00033972,8]
[359991056,1746466266695,-1322.26,0.00033972,8]
[359991057,1746466266705,-400.0,0.00033972,8]
[359991058,1746466266715,-400.0,0.00033972,8]
[359991059,1746466266725,-411.73645313,0.00033972,8]
[359991060,1746466266735,-2273.92,0.00033972,8]
[359991061,1746466266745,-400.0,0.00033972,8]
[359991062,1746466266756,-942.85,0.00033972,8]
[359991063,1746466266766,-1099.01,0.00033972,8]
[359991064,1746466266777,-2641.87,0.00033972,8]
[359991065,1746466266787,-400.0,0.00033972,8]
[359991066,1746466266798,-504.9,0.00033972,8]
[359991067,1746466266807,-2078.31,0.00033972,8]
[359991068,1746466266817,-408.1129656,0.00033972,8]
[359991069,1746466266828,-1796.69,0.00033972,8]
[359991070,1746466266838,-404.27,0.00033972,8]
[359991071,1746466266848,-400.0,0.00033972,8]
[359991072,1746466266858,-400.0,0.00033972,8]
[359991073,1746466266868,-997.13,0.00033972,8]
[359991074,1746466266878,-2875.2,0.00033972,8]
[359991075,1746466266888,-933.37,0.00033972,8]
[359991076,1746466266897,-400.0,0.00033972,8]
[359991077,1746466266907,-400.0,0.00033972,8]
[359991078,1746466266916,-400.0,0.00033972,8]
[359991079,1746466266925,-400.0,0.00033972,8]
[359991080,1746466266935,-400.0,0.00033972,8]
[359991081,1746466266944,-2166.02,0.00033972,8]
[359991082,1746466266954,-495.11,0.00033972,8]
[359991083,1746466266963,-478.21,0.00033972,8]
[359991084,1746466266973,-828.45,0.00033972,8]
[359991085,1746466267054,-400.0,0.00033972,8]
[359991086,1746466267071,-2370.89,0.00033972,8]
[359991087,1746466267080,-833.54,0.00033972,8]
[359991088,1746466267090,-400.0,0.00033972,8]
[359991089,1746466267100,-11132.27,0.00033972,8]
[359991090,1746466267109,-414.2,0.00033972,8]
[359991091,1746466267120,-1942.95,0.00033972,8]
[359991092,1746466267130,-400.0,0.00033972,8]
[359991093,1746466267140,-617.39,0.00033972,8]
[359991094,1746466267150,-400.0,0.00033972,8]
[359991095,1746466267160,-534.63,0.00033972,8]
[359991096,1746466267170,-400.0,0.00033972,8]
[359991097,1746466267181,-400.0,0.00033972,8]
[359991098,1746466267190,-400.0,0.00033972,8]
[359991099,1746466267200,-400.0,0.00033972,8]
[359991100,1746466267210,-832.63,0.00033972,8]
[359991101,1746466267220,-400.0,0.00033972,8]
[359991102,1746466267230,-937.4,0.00033972,8]
[359991103,1746466267240,-400.0,0.00033972,8]
[359991104,1746466267250,-400.0,0.00033972,8]
[359991105,1746466267260,-9074.6,0.00033972,8]
[359991106,1746466267270,-1547.41,0.00033972,8]
[359991107,1746466267281,-1484.01,0.00033972,8]
[359991108,1746466267291,-400.0,0.00033972,8]
[359991109,1746466267300,-400.0,0.00033972,8]
[359991110,1746466267311,-2080.35,0.00033972,8]
[359991111,1746466267320,-2232.97,0.00033972,8]
[359991112,1746466267330,-1691.97,0.00033972,8]
[359991113,1746466267343,-400.0,0.00033972,8]
[359991114,1746466267353,-400.0,0.00033972,8]
[359991115,1746466267364,-400.0,0.00033972,8]
[359991116,1746466267374,-400.0,0.00033972,8]
[359991117,1746466267384,-522.10438796,0.00033972,8]
[359991118,1746466267395,-3521.81,0.00033972,8]
[359991119,1746466267404,-708.96,0.00033972,8]
[359991120,1746466267414,-551.13,0.00033972,8]
[359991121,1746466267423,-400.0,0.00033972,8]
[359991122,1746466267434,-553.1,0.00033972,8]
[359991123,1746466267444,-430.80099196,0.00033972,8]
[359991124,1746466267453,-586.27,0.00033972,8]
[359991125,1746466267463,-400.0,0.00033972,8]
[359991126,1746466267474,-400.0,0.00033972,8]
[359991127,1746466267484,-1186.53,0.00033972,8]
[359991128,1746466267495,-535.86,0.00033972,8]
[359991129,1746466267504,-400.0,0.00033972,8]
[359991130,1746466267514,-1986.73,0.00033972,8]
[359991131,1746466267525,-1017.01678239,0.00033972,8]
[359991132,1746466267535,-462.97,0.00033972,8]
[359991133,1746466267545,-406.42,0.00033972,8]
[359991134,1746466267554,-400.0,0.00033972,8]
[359991135,1746466267564,-400.0,0.00033972,8]
[359991136,1746466267573,-1488.07,0.00033972,8]
[359991137,1746466267584,-607.06,0.00033972,8]
[359991138,1746466267594,-4132.62,0.00033972,8]
[359991139,1746466267604,-1507.7,0.00033972,8]
[359991140,1746466267614,-1135.42,0.00033972,8]
[359991141,1746466267624,-681.33,0.00033972,8]
[359991142,1746466267634,-400.0,0.00033972,8]
[359991143,1746466267644,-1080.08,0.00033972,8]
[359991144,1746466267654,-400.0,0.00033972,8]
[359991145,1746466267664,-735.3,0.00033972,8]
[359991146,1746466267681,-400.0,0.00033972,8]
[359991147,1746466267703,-681.17,0.00033972,8]
[359991148,1746466267721,-400.0,0.00033972,8]
[359991149,1746466267742,-4785.9,0.00033972,8]
[359991150,1746466267763,-400.0,0.00033972,8]
[359991151,1746466267783,-400.0,0.00033972,8]
[359991152,1746466267801,-400.0,0.00033972,8]
[359991153,1746466267818,-578.15,0.00033972,8]
[359991154,1746466267836,-400.0,0.00033972,8]
[359991155,1746466267857,-25922.47,0.00033972,8]
[359991156,1746466267877,-416.76269904,0.00033972,8]
[359991157,1746466267889,-400.0,0.00033972,8]
[359991158,1746466267909,-3661.81,0.00033972,8]
[359991159,1746466267925,-400.0,0.00033972,8]
[359991160,1746466267943,-400.0,0.00033972,8]
[359991161,1746466267956,-400.0,0.00033972,8]
[359991162,1746466267973,-2781.29,0.00033972,8]
[359991163,1746466267988,-1064.62,0.00033972,8]
[359991164,1746466268004,-400.0,0.00033972,8]
[359991165,1746466268020,-400.0,0.00033972,8]
[359991166,1746466268036,-400.0,0.00033972,8]
[359991167,1746466268052,-611.37,0.00033972,8]
[359991168,1746466268068,-400.0,0.00033972,8]
[359991169,1746466268084,-400.0,0.00033972,8]
[359991170,1746466268100,-3135.4,0.00033972,8]
[359991171,1746466268114,-1911.03,0.00033972,8]
[359991172,1746466268129,-3885.96,0.00033972,8]
[359991173,1746466268145,-7691.86,0.00033972,8]
[359991174,1746466268160,-400.0,0.00033972,8]
[359991175,1746466268192,-4527.66,0.00033972,8]
[359991176,1746466268218,-400.0,0.00033972,8]
[359991177,1746466268240,-516.18071005,0.00033972,8]
[359991178,1746466268259,-7054.49,0.00033972,8]
[359991179,1746466268281,-516.96,0.00033972,8]
[359991180,1746466268297,-604.47,0.00033972,8]
[359991181,1746466268316,-553.59,0.00033972,8]
[359991182,1746466268332,-400.0,0.00033972,8]
[359991183,1746466268347,-1553.26,0.00033972,8]
[359991184,1746466268363,-1471.97,0.00033972,8]
[359991185,1746466268378,-400.0,0.00033972,8]
[359991186,1746466268394,-167.55200202,0.00033972,8]
[359991187,1746466268410,-400.0,0.00033972,8]
[359991188,1746466268425,-784.14,0.00033972,8]
[359991189,1746466268441,-2405.99,0.00033972,8]
[359991190,1746466268455,-566.19,0.00033972,8]
[359991191,1746466268471,-1800.71,0.00033972,8]
[359991192,1746466268486,-659.71,0.00033972,8]
[359991193,1746466268500,-400.0,0.00033972,8]
[359991194,1746466268515,-3076.91,0.00033972,8]
[359991195,1746466268530,-755.88,0.00033972,8]
[359991196,1746466268545,-400.0,0.00033972,8]
[359991197,1746466268560,-712.21,0.00033972,8]
[359991198,1746466268574,-400.0,0.00033972,2]
[359991199,1746466268588,-1249.89,0.00033972,8]
[359991200,1746466268603,-411.12,0.00033972,8]
[359991201,1746466268617,-2513.46,0.00033972,8]
[359991202,1746466268632,-306.86,0.00033972,2]
[359991203,1746466268645,-400.0,0.00033972,8]
[359991204,1746466268660,-400.0,0.00033972,8]
[359991205,1746466268674,-1291.97,0.00033972,8]
[359991206,1746466268820,-400.0,0.00033972,8]
[359991207,1746466268829,-400.0,0.00033972,8]
[359991208,1746466268839,-421.83547488,0.00034,30]
[359991209,1746466268848,-841.77443764,0.00034,30]
[359991210,1746466268858,-199.57,0.00034,7]
[359991211,1746466268867,-160.0,0.00034,30]
[359991212,1746466268876,-182.23035355,0.00034,30]
[359991213,1746466268886,-182.23035355,0.00034,3]
[359991214,1746466268895,-1518.6062057,0.00034095,4]
[359991215,1746466268905,-160.0,0.00034099,3]
[359991216,1746466268914,-1295.80383713,0.00034107,30]
[359991217,1746466268923,-465.97323592,0.0003417,2]
[359991218,1746466268932,-501.01697973,0.00034179,2]
[359991219,1746466268941,-600.0,0.00034221,5]
[359991220,1746466268951,-156.3405842,0.00034246,8]
[359991221,1746466268960,-1692.68,0.00034246,8]
[359991222,1746466268970,-244.386599,0.00034246,14]
[359991223,1746466268979,-244.386595,0.00034246,14]
[359991224,1746466268989,-408.19,0.00034246,8]
[359991225,1746466268999,-621.86,0.00034246,8]
[359991226,1746466269008,-400.0,0.00034246,8]
[359991227,1746466269017,-400.0,0.00034246,8]
[359991228,1746466269027,-497.81,0.00034246,8]
[359991229,1746466269036,-400.0,0.00034246,8]
[359991230,1746466269045,-480.51,0.00034246,8]
[359991231,1746466269055,-441.76,0.00034246,8]
[359991232,1746466269065,-400.0,0.00034246,8]
[359991233,1746466269075,-663.75,0.00034246,8]
[359991234,1746466269084,-468.83,0.00034246,8]
[359991235,1746466269094,-400.0,0.00034246,8]
[359991236,1746466269103,-414.30453375,0.00034246,8]
[359991237,1746466269113,-400.0,0.00034246,8]
[359991238,1746466269122,-650.06,0.00034246,8]
[359991239,1746466269131,-400.0,0.00034246,8]
[359991240,1746466269140,-400.0,0.00034246,8]
[359991241,1746466269150,-400.0,0.00034246,8]
[359991242,1746466269159,-400.0,0.00034246,8]
[359991243,1746466269169,-424.49,0.00034246,8]
[359991244,1746466269179,-400.0,0.00034246,8]
[359991245,1746466269199,-400.0,0.00034246,8]
[359991246,1746466269207,-400.0,0.00034246,8]
[359991247,1746466269217,-584.19,0.00034246,8]
[359991248,1746466269227,-544.01,0.00034246,8]
[359991249,1746466269238,-445.11,0.00034246,8]
[359991250,1746466269249,-400.0,0.00034246,8]
[359991251,1746466269258,-400.0,0.00034246,8]
[359991252,1746466269269,-508.66254796,0.00034246,8]
[359991253,1746466269281,-400.0,0.00034246,8]
[359991254,1746466269290,-596.14,0.00034246,8]
[359991255,1746466269299,-407.26,0.00034246,8]
[359991256,1746466269308,-400.0,0.00034246,8]
[359991257,1746466269318,-400.0,0.00034246,8]
[359991258,1746466269327,-400.0,0.00034246,8]
[359991259,1746466269336,-723.92,0.00034246,8]
[359991260,1746466269345,-400.0,0.00034246,8]
[359991261,1746466269354,-601.89,0.00034246,8]
[359991262,1746466269363,-450.35872327,0.00034246,8]
[359991263,1746466269372,-400.0,0.00034246,8]
[359991264,1746466269381,-516.84,0.00034246,8]
[359991265,1746466269390,-744.57,0.00034246,8]
[359991266,1746466269399,-856.46,0.00034246,8]
[359991267,1746466269408,-763.86,0.00034246,8]
[359991268,1746466269417,-500.0,0.00034246,8]